fUSD/lending_fUSD_20240625
["ID","MTS","AMOUNT","RATE_DAILY","PERIOD"]
[330364288,1719335438506,-2306.91,0.00019178,2]
[330364290,1719335438515,-2242.69,0.00019178,2]
[330364291,1719335438525,-2242.69,0.00019178,2]
[330364292,1719335438534,-500.0,0.00019178,2]
[330364293,1719335438544,-501.63090343,0.00019178,2]
[330364294,1719335438554,-623.21,0.00019178,2]
[330364295,1719335438564,-500.0,0.00019178,2]
[330364297,1719335438574,-1468.66,0.00019178,2]
[330364298,1719335438584,-500.0,0.00019178,2]
[330364299,1719335438595,-780.65,0.00019178,2]
[330364300,1719335438604,-500.0,0.00019178,2]
[330364301,1719335438614,-500.0,0.00019178,2]
[330364302,1719335438624,-1290.28,0.00019178,2]
[330364303,1719335438633,-500.0,0.00019178,2]
[330364304,1719335438643,-500.0,0.00019178,2]
[330364305,1719335438653,-847.79,0.00019178,2]
[330364306,1719335438663,-752.84,0.00019178,2]
[330364307,1719335438673,-500.0,0.00019178,2]
[330364308,1719335438683,-2101.83,0.00019178,2]
[330364309,1719335438694,-500.0,0.00019178,2]
[330364310,1719335438703,-1746.22,0.00019178,2]
[330364311,1719335438714,-500.0,0.00019178,2]
[330364312,1719335438723,-500.0,0.00019178,2]
[330364313,1719335438733,-500.0,0.00019178,2]
[330364314,1719335438743,-968.29,0.00019178,2]
[330364315,1719335438752,-500.0,0.00019178,2]
[330364316,1719335438763,-500.0,0.00019178,2]
[330364317,1719335438772,-500.0,0.00019178,2]
[330364318,1719335438782,-899.23,0.00019178,2]
[330364319,1719335438792,-200.0,0.00019178,2]
[330364320,1719335438802,-500.0,0.00019178,2]
[330364321,1719335438812,-534.14,0.00019178,2]
[330364322,1719335438823,-500.0,0.00019178,2]
[330364323,1719335438833,-658.92,0.00019178,2]
[330364324,1719335438844,-500.0,0.00019178,2]
[330364325,1719335438854,-500.0,0.00019178,2]
[330364326,1719335438864,-1127.99229881,0.00019178,2]
[330364328,1719335439911,-521.44331218,0.00019178,2]
[330364330,1719335441558,-206.03175266,0.00014796,2]
[330364331,1719335441568,-309.25530186,0.00019127,2]
[330364332,1719335441589,-208.71182654,0.00019127,2]
[330364333,1719335441599,-159.37438901,0.00019178,2]
[330364334,1719335441608,-500.0,0.00019178,2]
[330364335,1719335441618,-891.75,0.00019178,2]
[330364336,1719335441629,-247.28248445,0.00019178,2]
[330364337,1719335441641,-252.71751555,0.00019178,2]
[330364338,1719335441651,-106.23626805,0.00019178,2]
[330364339,1719335441663,-568.89373195,0.00019178,2]
[330364340,1719335441672,-2120.98,0.00019178,2]
[330364341,1719335441683,-500.0,0.00019178,2]
[330364342,1719335441692,-2668.28,0.00019178,2]
[330364343,1719335441703,-371.73353357,0.00019178,2]
[330364344,1719335441715,-184.60403199,0.00019178,2]
[330364345,1719335441724,-642.5,0.00019178,2]
[330364346,1719335441733,-500.0,0.00019178,2]
[330364347,1719335441743,-374.32464313,0.00019178,2]
[330364348,1719335441755,-827.41535687,0.00019178,2]
[330364349,1719335441765,-500.0,0.00019178,2]
[330364350,1719335441774,-609.73588196,0.00019178,2]
[330364351,1719335441784,-2490.33177482,0.00019178,2]
[330364352,1719335441796,-585.35822518,0.00019178,2]
[330364353,1719335441806,-500.0,0.00019178,2]
[330364354,1719335441816,-500.0,0.00019178,2]
[330364355,1719335441825,-500.0,0.00019178,2]
[330364356,1719335441835,-978.17,0.00019178,2]
[330364357,1719335441845,-500.0,0.00019178,2]
[330364358,1719335441854,-500.0,0.00019178,2]
[330364359,1719335441863,-977.74,0.00019178,2]
[330364360,1719335441873,-1029.96,0.00019178,2]
[330364361,1719335441882,-514.67,0.00019178,2]
[330364362,1719335441892,-3653.49,0.00019178,2]
[330364363,1719335441902,-500.0,0.00019178,2]
[330364364,1719335441912,-500.0,0.00019178,2]
[330364365,1719335441922,-500.0,0.00019178,2]
[330364366,1719335441932,-500.0,0.00019178,2]
[330364367,1719335441942,-500.0,0.00019178,2]
[330364368,1719335441951,-500.0,0.00019178,2]
[330364369,1719335441960,-500.0,0.00019178,2]
[330364370,1719335441970,-500.0,0.00019178,2]
[330364371,1719335441979,-500.0,0.00019178,2]
[330364372,1719335441989,-500.0,0.00019178,2]
[330364373,1719335441998,-500.0,0.00019178,2]
[330364374,1719335442008,-500.0,0.00019178,2]
[330364375,1719335442018,-500.0,0.00019178,2]
[330364376,1719335442028,-507.67492563,0.00019178,2]
[330364377,1719335442037,-500.0,0.00019178,2]
[330364378,1719335442047,-500.0,0.00019178,2]
[330364379,1719335442056,-1791.48,0.00019178,2]
[330364380,1719335442066,-500.0,0.00019178,2]
[330364381,1719335442076,-500.0,0.00019178,2]
[330364382,1719335442086,-500.0,0.00019178,2]
[330364383,1719335442096,-500.0,0.00019178,2]
[330364384,1719335442106,-3208.17,0.00019178,2]
[330364385,1719335442116,-500.0,0.00019178,2]
[330364386,1719335442126,-500.0,0.00019178,2]
[330364387,1719335442136,-500.0,0.00019178,2]
[330364388,1719335442146,-570.89,0.00019178,2]
[330364389,1719335442155,-500.0,0.00019178,2]
[330364390,1719335442165,-500.0,0.00019178,2]
[330364391,1719335442175,-500.0,0.00019178,2]
[330364392,1719335442186,-907.65,0.00019178,2]
[330364393,1719335442196,-500.0,0.00019178,2]
[330364394,1719335442205,-500.0,0.00019178,2]
[330364395,1719335442215,-2086.93,0.00019178,2]
[330364396,1719335442224,-851.28,0.00019178,2]
[330364397,1719335442234,-653.7,0.00019178,2]
[330364398,1719335442244,-3934.36,0.00019178,2]
[330364399,1719335442253,-500.0,0.00019178,2]
[330364400,1719335442263,-500.0,0.00019178,2]
[330364401,1719335442272,-500.0,0.00019178,2]
[330364402,1719335442281,-500.0,0.00019178,2]
[330364403,1719335442291,-500.0,0.00019178,2]
[330364404,1719335442305,-500.0,0.00019178,2]
[330364405,1719335442315,-1014.53,0.00019178,2]
[330364406,1719335442324,-2094.51,0.00019178,2]
[330364407,1719335442334,-500.0,0.00019178,2]
[330364408,1719335442344,-1958.57,0.00019178,2]
[330364409,1719335442354,-1827.53,0.00019178,2]
[330364410,1719335442363,-500.0,0.00019178,2]
[330364411,1719335442374,-500.0,0.00019178,2]
[330364412,1719335442386,-500.0,0.00019178,2]
[330364413,1719335442396,-500.0,0.00019178,2]
[330364414,1719335442406,-500.0,0.00019178,2]
[330364415,1719335442416,-500.0,0.00019178,2]
[330364417,1719335442634,-500.0,0.00019178,2]
[330364418,1719335442644,-2302.31,0.00019178,2]
[330364419,1719335442653,-2126.39,0.00019178,2]
[330364420,1719335442662,-500.0,0.00019178,2]
[330364421,1719335442672,-500.0,0.00019178,2]
[330364423,1719335442682,-500.0,0.00019178,2]
[330364425,1719335442691,-500.0,0.00019178,2]
[330364427,1719335442701,-500.0,0.00019178,2]
[330364428,1719335442710,-512.24,0.00019178,2]
[330364429,1719335442719,-500.0,0.00019178,2]
[330364430,1719335442728,-500.0,0.00019178,2]
[330364431,1719335442738,-500.0,0.00019178,2]
[330364432,1719335442747,-500.0,0.00019178,2]
[330364433,1719335442757,-500.0,0.00019178,2]
[330364435,1719335442766,-3307.17,0.00019178,2]
[330364436,1719335442776,-3060.33,0.00019178,2]
[330364438,1719335442785,-500.0,0.00019178,2]
[330364440,1719335442794,-526.18768989,0.00019178,2]
[330364441,1719335442803,-514.64,0.00019178,2]
[330364443,1719335442812,-634.31,0.00019178,2]
[330364445,1719335442822,-500.0,0.00019178,2]
[330364447,1719335442831,-500.0,0.00019178,2]
[330364449,1719335442840,-539.61,0.00019178,2]
[330364452,1719335442850,-500.0,0.00019178,2]
[330364453,1719335442859,-596.16775687,0.00019178,2]
[330364454,1719335442868,-500.0,0.00019178,2]
[330364456,1719335442878,-902.0,0.00019178,2]
[330364458,1719335442888,-559.08,0.00019178,2]
[330364460,1719335442897,-500.0,0.00019178,2]
[330364461,1719335442906,-610.14595708,0.00019178,2]
[330364462,1719335442915,-500.0,0.00019178,2]
[330364464,1719335442925,-500.0,0.00019178,2]
[330364465,1719335442935,-500.0,0.00019178,2]
[330364468,1719335442944,-500.0,0.00019178,2]
[330364469,1719335442954,-500.0,0.00019178,2]
[330364470,1719335442963,-500.0,0.00019178,2]
[330364471,1719335442972,-500.0,0.00019178,2]
[330364472,1719335442981,-500.0,0.00019178,2]
[330364473,1719335442991,-500.0,0.00019178,2]
[330364474,1719335443000,-500.0,0.00019178,2]
[330364475,1719335443011,-1558.71,0.00019178,2]
[330364476,1719335443020,-1747.88,0.00019178,2]
[330364477,1719335443029,-500.0,0.00019178,2]
[330364478,1719335443039,-500.0,0.00019178,2]
[330364479,1719335443048,-500.0,0.00019178,2]
[330364480,1719335443058,-500.0,0.00019178,2]
[330364481,1719335443067,-539.4688503,0.00019178,2]
[330364482,1719335443077,-500.0,0.00019178,2]
[330364483,1719335443086,-501.7571055,0.00019178,2]
[330364484,1719335443096,-500.0,0.00019178,2]
[330364485,1719335443105,-500.0,0.00019178,2]
[330364486,1719335443114,-2845.21,0.00019178,2]
[330364487,1719335443125,-500.0,0.00019178,2]
[330364488,1719335443141,-575.51,0.00019178,2]
[330364489,1719335443151,-791.86,0.00019178,2]
[330364490,1719335443162,-323.94016849,0.00019178,2]
[330364491,1719335443172,-500.0,0.00019178,2]
[330364492,1719335443185,-500.0,0.00019178,2]
[330364493,1719335443196,-500.0,0.00019178,2]
[330364494,1719335443205,-500.0,0.00019178,2]
[330364495,1719335443215,-500.0,0.00019178,2]
[330364496,1719335443224,-500.0,0.00019178,2]
[330364497,1719335443235,-500.0,0.00019178,2]
[330364498,1719335443245,-500.0,0.00019178,2]
[330364499,1719335443254,-500.0,0.00019178,2]
[330364500,1719335443264,-502.3547687,0.00019178,2]
[330364501,1719335443274,-1172.46,0.00019178,2]
[330364502,1719335443283,-527.25115,0.00019178,2]
[330364503,1719335443293,-500.0,0.00019178,2]
[330364504,1719335443308,-500.0,0.00019178,2]
[330364505,1719335443318,-500.0,0.00019178,2]
[330364506,1719335443327,-500.0,0.00019178,2]
[330364507,1719335443337,-501.65217601,0.00019178,2]
[330364508,1719335443348,-500.0,0.00019178,2]
[330364509,1719335443358,-3044.95,0.00019178,2]
[330364510,1719335443367,-500.0,0.00019178,2]
[330364511,1719335443377,-2634.31,0.00019178,2]
[330364512,1719335443386,-2047.56,0.00019178,2]
[330364513,1719335443396,-1360.09,0.00019178,2]
[330364514,1719335443405,-500.0,0.00019178,2]
[330364515,1719335443415,-500.0,0.00019178,2]
[330364516,1719335443424,-533.57030543,0.00019178,2]
[330364517,1719335443438,-1542.93,0.00019178,2]
[330364518,1719335443447,-500.0,0.00019178,2]
[330364519,1719335443456,-502.16354556,0.00019178,2]
[330364520,1719335443464,-500.0,0.00019178,2]
[330364521,1719335443476,-500.0,0.00019178,2]
[330364522,1719335443486,-500.0,0.00019178,2]
[330364523,1719335443496,-500.0,0.00019178,2]
[330364524,1719335443506,-500.0,0.00019178,2]
[330364525,1719335443516,-500.0,0.00019178,2]
[330364526,1719335443526,-500.0,0.00019178,2]
[330364527,1719335443535,-500.0,0.00019178,2]
[330364528,1719335443545,-1211.0,0.00019178,2]
[330364529,1719335443554,-500.0,0.00019178,2]
[330364530,1719335443563,-500.0,0.00019178,2]
[330364531,1719335443572,-500.0,0.00019178,2]
[330364532,1719335443582,-599.65,0.00019178,2]
[330364533,1719335443591,-500.0,0.00019178,2]
[330364534,1719335443601,-500.0,0.00019178,2]
[330364535,1719335443610,-500.0,0.00019178,2]
[330364536,1719335443620,-500.0,0.00019178,2]
[330364537,1719335443629,-500.0,0.00019178,2]
[330364539,1719335443639,-500.0,0.00019178,2]
[330364541,1719335443648,-500.0,0.00019178,2]
[330364543,1719335443658,-1279.79,0.00019178,2]
[330364544,1719335443667,-500.0,0.00019178,2]
[330364545,1719335443676,-512.62906644,0.00019178,2]
[330364546,1719335443693,-500.0,0.00019178,2]
[330364548,1719335443702,-500.0,0.00019178,2]
[330364549,1719335443711,-500.0,0.00019178,2]
[330364551,1719335443721,-500.0,0.00019178,2]
[330364553,1719335443730,-500.0,0.00019178,2]
[330364555,1719335443739,-635.77,0.00019178,2]
[330364557,1719335443748,-500.0,0.00019178,2]
[330364558,1719335443758,-500.0,0.00019178,2]
[330364559,1719335443767,-565.69971127,0.00019178,2]
[330364560,1719335443776,-500.0,0.00019178,2]
[330364561,1719335443787,-1929.43,0.00019178,2]
[330364562,1719335443796,-500.0,0.00019178,2]
[330364563,1719335443806,-500.0,0.00019178,2]
[330364564,1719335443816,-1115.16,0.00019178,2]
[330364565,1719335443825,-5000.0,0.00019178,2]
[330364566,1719335443834,-500.0,0.00019178,2]
[330364567,1719335443843,-937.3,0.00019178,2]
[330364568,1719335443853,-500.0,0.00019178,2]
[330364569,1719335443863,-4445.64,0.00019178,2]
[330364570,1719335443872,-699.12,0.00019178,2]
[330364571,1719335443882,-500.0,0.00019178,2]
[330364572,1719335443891,-1220.33,0.00019178,2]
[330364573,1719335443901,-754.39,0.00019178,2]
[330364574,1719335443910,-500.0,0.00019178,2]
[330364575,1719335443919,-500.0,0.00019178,2]
[330364576,1719335443930,-500.0,0.00019178,2]
[330364577,1719335443939,-3182.85,0.00019178,2]
[330364578,1719335443948,-500.0,0.00019178,2]
[330364579,1719335443956,-160.86075141,0.00019178,2]
[330364580,1719335443966,-500.0,0.00019178,2]
[330364581,1719335443975,-781.74,0.00019178,2]
[330364582,1719335443984,-500.0,0.00019178,2]
[330364583,1719335443994,-500.0,0.00019178,2]
[330364584,1719335444003,-500.0,0.00019178,2]
[330364585,1719335444013,-1275.69,0.00019178,2]
[330364586,1719335444022,-500.0,0.00019178,2]
[330364587,1719335444032,-500.0,0.00019178,2]
[330364588,1719335444041,-500.0,0.00019178,2]
[330364589,1719335444050,-500.0,0.00019178,2]
[330364590,1719335444059,-848.19,0.00019178,2]
[330364591,1719335444068,-4858.31,0.00019178,2]
[330364592,1719335444078,-500.0,0.00019178,2]
[330364593,1719335444087,-4732.87,0.00019178,2]
[330364594,1719335444096,-870.3,0.00019178,2]
[330364595,1719335444105,-1360.3,0.00019178,2]
[330364596,1719335444115,-2161.08,0.00019178,2]
[330364597,1719335444125,-500.0,0.00019178,2]
[330364598,1719335444135,-858.86,0.00019178,2]
[330364599,1719335444145,-504.47958995,0.00019178,2]
[330364600,1719335444156,-1453.67,0.00019178,2]
[330364601,1719335444165,-500.0,0.00019178,2]
[330364602,1719335444174,-3699.04,0.00019178,2]
[330364603,1719335444184,-603.50547866,0.00019178,2]
[330364604,1719335444193,-500.0,0.00019178,2]
[330364605,1719335444203,-3084.62,0.00019178,2]
[330364606,1719335444212,-500.0,0.00019178,2]
[330364607,1719335444224,-500.0,0.00019178,2]
[330364608,1719335444234,-500.0,0.00019178,2]
[330364609,1719335444243,-500.0,0.00019178,2]
[330364610,1719335444253,-1975.95,0.00019178,2]
[330364611,1719335444263,-500.0,0.00019178,2]
[330364612,1719335444272,-537.86,0.00019178,2]
[330364613,1719335444281,-17940.28969917,0.00019178,2]
[330364614,1719335444290,-1338.01,0.00019178,2]
[330364615,1719335444301,-500.0,0.00019178,2]
[330364616,1719335444314,-500.0,0.00019178,2]
[330364617,1719335444323,-2543.2,0.00019178,2]
[330364618,1719335444333,-500.0,0.00019178,2]
[330364619,1719335444342,-2056.06,0.00019178,2]
[330364620,1719335444354,-4582.75,0.00019178,2]
[330364621,1719335444363,-609.21,0.00019178,2]
[330364622,1719335444372,-1055.44,0.00019178,2]
[330364623,1719335444382,-500.0,0.00019178,2]
[330364624,1719335444391,-500.0,0.00019178,2]
[330364625,1719335444401,-1964.17,0.00019178,2]
[330364626,1719335444410,-500.0,0.00019178,2]
[330364627,1719335444420,-509.08163477,0.00019178,2]
[330364628,1719335444431,-500.0,0.00019178,2]
[330364629,1719335444441,-978.87,0.00019178,2]
[330364630,1719335444450,-500.0,0.00019178,2]
[330364631,1719335444459,-500.0,0.00019178,2]
[330364632,1719335444468,-500.0,0.00019178,2]
[330364633,1719335444480,-500.0,0.00019178,2]
[330364634,1719335444490,-500.0,0.00019178,2]
[330364635,1719335444500,-500.0,0.00019178,2]
[330364636,1719335444510,-500.0,0.00019178,2]
[330364637,1719335444519,-1896.36,0.00019178,2]
[330364638,1719335444528,-500.0,0.00019178,2]
[330364639,1719335444537,-500.0,0.00019178,2]
[330364640,1719335444547,-500.0,0.00019178,2]
[330364641,1719335444556,-3406.96,0.00019178,2]
[330364642,1719335444567,-500.0,0.00019178,2]
[330364643,1719335444576,-500.0,0.00019178,2]
[330364644,1719335444586,-2743.36,0.00019178,2]
[330364645,1719335444596,-500.0,0.00019178,2]
[330364646,1719335444605,-1172.85,0.00019178,2]
[330364647,1719335444614,-500.0,0.00019178,2]
[330364648,1719335444623,-2718.88,0.00019178,2]
[330364649,1719335444632,-3366.7,0.00019178,2]
[330364650,1719335444642,-500.0,0.00019178,2]
[330364651,1719335444651,-500.63435787,0.00019178,2]
[330364652,1719335444661,-2650.73,0.00019178,2]
[330364653,1719335444671,-500.0,0.00019178,2]
[330364654,1719335444680,-500.0,0.00019178,2]
[330364655,1719335444689,-500.0,0.00019178,2]
[330364656,1719335444699,-1652.39,0.00019178,2]
[330364657,1719335444708,-500.0,0.00019178,2]
[330364658,1719335444717,-500.0,0.00019178,2]
[330364659,1719335444727,-500.0,0.00019178,2]
[330364660,1719335444736,-1648.93,0.00019178,2]
[330364661,1719335444746,-500.0,0.00019178,2]
[330364662,1719335444755,-620.13,0.00019178,2]
[330364663,1719335444764,-5003.4,0.00019178,2]
[330364664,1719335444773,-1545.94,0.00019178,2]
[330364665,1719335444783,-1000.0,0.00019178,2]
[330364666,1719335444792,-500.0,0.00019178,2]
[330364667,1719335444801,-500.0,0.00019178,2]
[330364668,1719335444811,-501.14469578,0.00019178,2]
[330364669,1719335444820,-500.0,0.00019178,2]
[330364670,1719335444829,-1694.03,0.00019178,2]
[330364671,1719335444839,-500.0,0.00019178,2]
[330364672,1719335444847,-1903.5,0.00019178,2]
[330364673,1719335444857,-500.0,0.00019178,2]
[330364674,1719335444866,-500.0,0.00019178,2]
[330364675,1719335444876,-500.0,0.00019178,2]
[330364676,1719335444885,-500.0,0.00019178,2]
[330364677,1719335444895,-153.09385193,0.00019178,2]
[330364678,1719335444904,-704.35,0.00019178,2]
[330364679,1719335444913,-500.0,0.00019178,2]
[330364680,1719335444923,-500.0,0.00019178,2]
[330364681,1719335444933,-500.0,0.00019178,2]
[330364682,1719335444942,-500.0,0.00019178,2]
[330364683,1719335444952,-500.0,0.00019178,2]
[330364684,1719335444961,-500.0,0.00019178,2]
[330364685,1719335444970,-4234.01,0.00019178,2]
[330364686,1719335444979,-833.03,0.00019178,2]
[330364687,1719335444989,-2258.03,0.00019178,2]
[330364688,1719335444998,-500.0,0.00019178,2]
[330364689,1719335445008,-1921.04,0.00019178,2]
[330364690,1719335445017,-2875.6,0.00019178,2]
[330364691,1719335445027,-500.0,0.00019178,2]
[330364692,1719335445036,-500.0,0.00019178,2]
[330364693,1719335445045,-3042.09,0.00019178,2]
[330364694,1719335445054,-500.0,0.00019178,2]
[330364695,1719335445065,-500.0,0.00019178,2]
[330364696,1719335445074,-500.0,0.00019178,2]
[330364697,1719335445083,-535.02,0.00019178,2]
[330364698,1719335445092,-500.0,0.00019178,2]
[330364699,1719335445102,-505.72252167,0.00019178,2]
[330364700,1719335445111,-658.24,0.00019178,2]
[330364701,1719335445120,-500.0,0.00019178,2]
[330364702,1719335445129,-500.0,0.00019178,2]
[330364703,1719335445139,-500.0,0.00019178,2]
[330364704,1719335445148,-500.0,0.00019178,2]
[330364705,1719335445329,-799.1,0.00019178,2]
[330364706,1719335445342,-500.0,0.00019178,2]
[330364707,1719335445352,-500.0,0.00019178,2]
[330364708,1719335445361,-500.0,0.00019178,2]
[330364709,1719335445371,-500.0,0.00019178,2]
[330364710,1719335445383,-500.0,0.00019178,2]
[330364711,1719335445393,-500.0,0.00019178,2]
[330364712,1719335445402,-500.0,0.00019178,2]
[330364713,1719335445413,-500.0,0.00019178,2]
[330364714,1719335445424,-1300.5,0.00019178,2]
[330364715,1719335445435,-500.0,0.00019178,2]
[330364716,1719335445445,-587.0,0.00019178,2]
[330364717,1719335445455,-500.0,0.00019178,2]
[330364718,1719335445465,-500.0,0.00019178,2]
[330364719,1719335445476,-639.83,0.00019178,2]
[330364720,1719335445486,-705.09,0.00019178,2]
[330364721,1719335445495,-500.0,0.00019178,2]
[330364722,1719335445505,-500.0,0.00019178,2]
[330364723,1719335445514,-500.0,0.00019178,2]
[330364724,1719335445525,-501.80654588,0.00019178,2]
[330364725,1719335445534,-500.0,0.00019178,2]
[330364726,1719335445543,-501.59,0.00019178,2]
[330364727,1719335445552,-500.0,0.00019178,2]
[330364728,1719335445562,-500.0,0.00019178,2]
[330364729,1719335445571,-500.0,0.00019178,2]
[330364730,1719335445580,-1460.21,0.00019178,2]
[330364731,1719335445590,-500.0,0.00019178,2]
[330364732,1719335445600,-500.0,0.00019178,2]
[330364733,1719335445609,-2542.49,0.00019178,2]
[330364734,1719335445619,-500.0,0.00019178,2]
[330364735,1719335445628,-500.0,0.00019178,2]
[330364736,1719335445638,-500.0,0.00019178,2]
[330364737,1719335445647,-2138.98,0.00019178,2]
[330364738,1719335445657,-1125.43,0.00019178,2]
[330364739,1719335445666,-529.23,0.00019178,2]
[330364740,1719335445676,-2602.5,0.00019178,2]
[330364741,1719335445687,-500.0,0.00019178,2]
[330364742,1719335445696,-501.04914107,0.00019178,2]
[330364743,1719335445705,-988.65,0.00019178,2]
[330364744,1719335445714,-2292.8,0.00019178,2]
[330364745,1719335445724,-500.0,0.00019178,2]
[330364746,1719335445733,-2730.32,0.00019178,2]
[330364747,1719335445742,-500.0,0.00019178,2]
[330364748,1719335445752,-582.84224448,0.00019178,2]
[330364749,1719335445761,-500.0,0.00019178,2]
[330364750,1719335445770,-500.0,0.00019178,2]
[330364751,1719335445780,-500.0,0.00019178,2]
[330364752,1719335445789,-765.88,0.00019178,2]
[330364753,1719335445799,-500.0,0.00019178,2]
[330364754,1719335445808,-500.0,0.00019178,2]
[330364755,1719335445817,-500.0,0.00019178,2]
[330364756,1719335445827,-500.0,0.00019178,2]
[330364757,1719335445835,-2476.99,0.00019178,2]
[330364758,1719335445844,-507.48,0.00019178,2]
[330364760,1719335445854,-500.0,0.00019178,2]
[330364762,1719335445863,-4421.32,0.00019178,2]
[330364764,1719335445873,-500.0,0.00019178,2]
[330364765,1719335445882,-3782.57,0.00019178,2]
[330364767,1719335445891,-500.0,0.00019178,2]
[330364769,1719335445901,-500.0,0.00019178,2]
[330364771,1719335445911,-860.37,0.00019178,2]
[330364773,1719335445920,-500.0,0.00019178,2]
[330364775,1719335445929,-500.0,0.00019178,2]
[330364777,1719335445939,-904.91,0.00019178,2]
[330364779,1719335445948,-500.0,0.00019178,2]
[330364781,1719335445957,-928.49,0.00019178,2]
[330364783,1719335445966,-500.0,0.00019178,2]
[330364784,1719335445976,-626.21,0.00019178,2]
[330364785,1719335445985,-500.0,0.00019178,2]
[330364786,1719335445995,-5116.38,0.00019178,2]
[330364787,1719335446005,-2891.43,0.00019178,2]
[330364788,1719335446014,-940.28,0.00019178,2]
[330364789,1719335446023,-500.0,0.00019178,2]
[330364790,1719335446033,-500.0,0.00019178,2]
[330364791,1719335446042,-551.47813862,0.00019178,2]
[330364792,1719335446051,-500.0,0.00019178,2]
[330364793,1719335446060,-500.0,0.00019178,2]
[330364794,1719335446069,-500.0,0.00019178,2]
[330364795,1719335446078,-4817.59,0.00019178,2]
[330364796,1719335446087,-500.0,0.00019178,2]
[330364797,1719335446097,-500.0,0.00019178,2]
[330364798,1719335446107,-4910.44,0.00019178,2]
[330364799,1719335446116,-500.0,0.00019178,2]
[330364800,1719335446126,-500.0,0.00019178,2]
[330364801,1719335446137,-500.0,0.00019178,2]
[330364802,1719335446147,-4593.37,0.00019178,2]
[330364803,1719335446156,-3450.94,0.00019178,2]
[330364804,1719335446166,-500.0,0.00019178,2]
[330364805,1719335446175,-803.06,0.00019178,2]
[330364806,1719335446187,-1116.08,0.00019178,2]
[330364807,1719335446196,-500.0,0.00019178,2]
[330364808,1719335446204,-500.0,0.00019178,2]
[330364809,1719335446217,-500.0,0.00019178,2]
[330364810,1719335446227,-1369.38,0.00019178,2]
[330364811,1719335446237,-500.0,0.00019178,2]
[330364812,1719335446247,-1564.54,0.00019178,2]
[330364813,1719335446257,-500.0,0.00019178,2]
[330364814,1719335446266,-1236.03,0.00019178,2]
[330364815,1719335446276,-500.0,0.00019178,2]
[330364816,1719335446287,-500.0,0.00019178,2]
[330364817,1719335446301,-500.0,0.00019178,2]
[330364818,1719335446316,-500.0,0.00019178,2]
[330364819,1719335446325,-2139.51,0.00019178,2]
[330364820,1719335446335,-652.63,0.00019178,2]
[330364821,1719335446344,-500.0,0.00019178,2]
[330364822,1719335446354,-500.0,0.00019178,2]
[330364823,1719335446364,-500.0,0.00019178,2]
[330364824,1719335446373,-500.0,0.00019178,2]
[330364825,1719335446388,-500.0,0.00019178,2]
[330364826,1719335446399,-1673.51,0.00019178,2]
[330364828,1719335446408,-500.0,0.00019178,2]
[330364830,1719335446418,-561.12,0.00019178,2]
[330364831,1719335446427,-500.0,0.00019178,2]
[330364832,1719335446439,-3422.61,0.00019178,2]